{"text_format":"1","workbook":"xlsx","n_sheets":3,"sheets":["Identif","SV12_01","SV12a_01"],"not_rendered":{"charts":0,"images":2,"macros":1,"external_links":0,"defined_names":7,"comments":0,"pivot_tables":0},"unopened":[],"bounds":{"document_bytes":16777216,"sheet_cells":100000,"rows_first":2000,"rows_last":500,"rows_between":2000,"halvings":0,"cell_chars":16384,"cell_head_chars":4096},"cells_cut":0,"cells_raw":0,"read":"whole","date_system":"1900"}

{"sheet":"Identif","index":0,"n_rows":49,"n_cols":53,"rows_kept":49,"cut":false,"hidden":false,"merged":[[32,1,32,52],[33,1,33,52],[20,1,20,6],[26,8,26,13],[22,48,22,52],[23,32,23,46],[23,48,23,52],[24,32,24,52],[25,32,25,52],[31,1,31,52],[22,32,22,46],[28,0,28,52],[29,0,29,52],[30,0,30,52],[26,0,26,7],[26,32,26,52],[19,32,19,52],[20,10,20,28],[20,32,20,52],[21,10,21,28],[21,32,21,52],[19,10,19,28],[5,32,5,52],[11,1,11,8],[0,32,0,50],[1,32,2,35],[1,36,1,37],[1,38,1,46],[1,47,2,50],[2,36,2,37],[3,32,3,35],[3,36,3,37],[3,38,3,46],[3,47,3,50],[9,16,9,32],[2,38,2,46],[11,9,11,52],[13,1,13,8],[15,1,15,8],[17,1,17,8],[13,9,13,52],[15,9,15,44],[15,45,15,47],[15,48,15,52],[17,9,17,52],[39,1,39,52],[34,1,34,52],[35,1,35,52],[36,1,36,52],[37,1,37,52],[38,1,38,52]]}
[null,null,null,null,null,null,null,null,null,null,null,null,null,null,null,null,null,null,null,null,null,null,null,null,null,null,null,null,null,null,null,null,"Škol (MŠVVŠ SR)  12 - 01",null,null,null,null,null,null,null,null,null,null,null,null,null,null,null,null,null,null,null,"AD"]
[null,null,null,null,null,null,null,null,null,null,null,null,null,null,null,null,null,null,null,null,null,null,null,null,null,null,null,null,null,null,null,null,"Rok",null,null,null,"Mes",null,"Identifikačné číslo",null,null,null,null,null,null,null,null,"Fakulta"]
[null,null,null,null,null,null,null,null,null,null,null,null,null,null,null,null,null,null,null,null,null,null,null,null,null,null,null,null,null,null,null,null,null,null,null,null,"iac"]
[null,null,null,null,null,null,null,null,null,null,null,null,null,null,null,null,null,null,null,null,null,null,null,null,null,null,null,null,null,null,null,null,"2023",null,null,null,"12"]
[]
[null,null,null,null,null,null,null,null,null,null,null,null,null,null,null,null,null,null,null,null,null,null,null,null,null,null,null,null,null,null,null,null,"Zber údajov podľa stavu: k 31. 12. 2023"]
[]
[]
[]
[null,null,null,null,null,null,null,null,null,null,null,null,null,null,null,null,"Doktorandské štúdium"]
[]
[null,"Vysoká škola"]
[]
[null,"Fakulta"]
[]
[null,"Miesto",null,null,null,null,null,null,null,null,null,null,null,null,null,null,null,null,null,null,null,null,null,null,null,null,null,null,null,null,null,null,null,null,null,null,null,null,null,null,null,null,null,null,null,"PSČ"]
[]
[null,"Ulica"]
[]
[null,null,null,null,null,null,null,null,null,null,"Podpis vedúceho",null,null,null,null,null,null,null,null,null,null,null,null,null,null,null,null,null,null,null,null,null,"Výkaz zostavil"]
[null,"Pečiatka",null,null,null,null,null,null,null,null,"spravodajskej jednotky"]
[]
[null,null,null,null,null,null,null,null,null,null,null,null,null,null,null,null,null,null,null,null,null,null,null,null,null,null,null,null,null,null,null,null,"Telefón",null,null,null,null,null,null,null,null,null,null,null,null,null,null,null,"Klapka"]
[]
[null,null,null,null,null,null,null,null,null,null,null,null,null,null,null,null,null,null,null,null,null,null,null,null,null,null,null,null,null,null,null,null,"E-mail"]
[]
["Odoslané dňa"]
[]
["Polia oranžovej farby musia byť povinne vyplnené (identifikačná časť) alebo označujú nepríspustnú chybu"]
["(údajová časť). Po vyplnení nesmie na formulári byť oranžové pole. Formulár s oranžovým poľom je chybný."]
["Komentár k výkazu (vyplníte povinne, ak na formulári ostalo žlté pole - možná chyba)"]
[]
[]
[]
[]
[]
[]
[]
[]
[]
[]
[null,"Vysvetlivky",null,null,null,null,null,null,"Výkaz vyplnia všetky vysoké školy a fakulty verejné, štátne a súkromné."]
[null,null,null,null,null,null,null,null,"Výkaz sa zostavuje za celý kalendárny rok a uvedú sa v ňom počty"]
[null,null,null,null,null,null,null,null,"absolventov jednotlivých odborov, ktorí od 1. januára do 31. decembra"]
[null,null,null,null,null,null,null,null,"úspešne ukončili štúdium."]
[null,null,null,null,null,null,null,"1/",null,"1.diplom - absolventi bakalárskeho štúdia (I. stupeň) a absolventi, ktorí nemajú"]
[null,null,null,null,null,null,null,null,null,"bakalársky diplom (súvislé štúdium I. a II. stupňa)."]
[null,null,null,null,null,null,null,null,null,"2. diplom - absolventi, ktorí už získali bakalársky diplom v rovnakom alebo príbuznom"]
[null,null,null,null,null,null,null,null,null,"študijnom programe."]

{"sheet":"SV12_01","index":1,"n_rows":9,"n_cols":46,"rows_kept":9,"cut":false,"hidden":false,"merged":[[3,12,4,13],[3,10,3,11],[4,6,4,7],[1,16,6,17],[1,14,1,15],[2,14,2,15],[3,14,3,15],[4,14,4,15],[4,10,4,11],[3,6,3,7],[3,8,4,9],[4,1,5,1],[3,0,3,1],[6,4,6,5],[3,2,5,2],[3,3,5,3],[3,4,5,4],[3,5,5,5],[6,2,6,3],[0,0,0,7],[1,4,1,5],[2,4,2,5],[2,6,2,9],[1,0,1,1],[1,2,1,3],[1,6,1,13],[2,10,2,13],[2,0,2,1],[2,2,2,3],[8,1,9,1],[8,2,9,2],[8,3,9,3],[8,4,9,4],[8,5,9,5],[8,6,9,6],[8,7,9,7],[8,8,9,8],[8,9,9,9],[8,10,9,10],[8,45,9,45],[8,16,9,16],[8,17,9,17],[8,11,9,11],[8,12,9,12],[8,13,9,13],[8,14,9,14],[8,15,9,15]]}
["II. Absolventi doktorandského štúdia podľa odborov za kalendárny rok",null,null,null,null,null,null,null,null,null,"Fakulta",null,null,null,{"$f":"Identif!AV4","v":0}]
["Študijné odbory, programy",null,"Dĺžka",null,"Druh",null,"Absolventi vo forme štúdia",null,null,null,null,null,null,null,"Absolventi, ktorí",null,"Výpis chýb v príslušnom riadku"]
[null,null,"štúdia",null,"štúdia",null,"dennej",null,null,null,"externej",null,null,null,"navštevovali ext."]
[null,null,"denné","externé","denné","externé","slov. štátneho",null,"cudzinci",null,"slov. štátneho",null,"cudzinci",null,"vzdelávacie"]
["číselný","názov",null,null,null,null,"občianstva",null,null,null,"občianstva",null,null,null,"inštitúcie",null,null,null,null,null,null,null,null,null,null,null,null,null,null,null,null,null,null,null,null,null,null,null,null,null,null,null,null,null,"kod_uip","nazov_uip"]
["kód",null,null,null,null,null,"spolu","ženy","spolu","ženy","spolu","ženy","spolu","ženy","spolu","ženy"]
["a","b","c",null,"d",null,2,3,4,5,6,7,8,9,10,11]
[null,"Spolu",null,null,null,null,{"$f":"SUM(G11:G1481)","v":0},0,0,0,0,0,0,0,0,0]
[null,null,null,null,null,null,null,null,null,null,null,null,null,null,null,null,{"$f":"IF(H9>G9,\"Stĺpec 3 je väčši ako stĺpec 2\",IF(J9>I9,\"Stĺpec 5 je väčši ako stĺpec 4\",IF(L9>K9,\"Stĺpec 7 je väčši ako stĺpec 6\",IF(N9>M9,\"Stĺpec 9 je väčši ako stĺpec 8\",IF(P9>O9,\"Stĺpec 11 je väčši ako stĺpec 10\",\" \")))))","v":" "},{"$f":"IF(OR(AND(A9<>\"\",G9+I9+K9+M9+O9=0), AND(C9<>\"\",G9+I9=0),AND(D9<>\"\",K9+M9=0)),\"nulové údaje\",\" \")","v":" "}]

{"sheet":"SV12a_01","index":2,"n_rows":25,"n_cols":14,"rows_kept":25,"cut":false,"hidden":false,"merged":[[5,13,6,13],[24,0,24,1],[7,0,19,0],[4,0,4,1],[23,0,23,1],[20,0,20,1],[22,0,22,11],[6,0,6,1],[4,2,4,3],[3,8,4,9],[1,10,1,11],[2,10,2,11],[4,10,4,11],[3,10,3,11],[1,0,1,1],[2,0,2,1],[1,2,1,9],[3,0,3,1],[2,2,2,5],[3,2,3,3],[3,4,4,5],[2,6,2,9],[3,6,3,7],[4,6,4,7]]}
["IV. Veková štruktúra absolventov doktorandského štúdia",null,null,null,null,null,null,null,null,"Fakulta",null,{"$f":"Identif!AV4","v":0}]
["Dosiahnutý",null,"Absolventi vo forme štúdia",null,null,null,null,null,null,null,"Absolventi, ktorí",null,null,"Výpis chýb"]
["vek od 1. 1.",null,"dennej",null,null,null,"externej",null,null,null,"navštevovali exter.",null,null,"v jednotlivých riadkoch"]
["do 31. 12.",null,"slov. štátneho",null,"cudzinci",null,"slov. štátneho",null,"cudzinci",null,"vzdelávacie"]
[null,null,"občianstva",null,null,null,"občianstva",null,null,null,"inštitúcie"]
[null,null,"spolu","ženy","spolu","ženy","spolu","ženy","spolu","ženy","spolu","ženy",null,{"$f":"IF(SUM(C8:L12)>0,\"Vyplnení 20 až 24-roční v žltých poliach - nepravdepodobný údaj - pravda? Pre Ukrajinu OK\",\" \")","v":" "}]
["a",null,1,2,3,4,5,6,7,8,9,10]
["Absolventi podľa veku (v rokoch)",20,null,null,null,null,null,null,null,null,null,null,null,{"$f":"IF(D8>C8,\"Stĺpec 2 je väčši ako stĺpec 1\",IF(F8>E8,\"Stĺpec 4 je väčši ako stĺpec 3\",IF(H8>G8,\"Stĺpec 6 je väčši ako stĺpec 5\",IF(J8>I8,\"Stĺpec 8 je väčši ako stĺpec 7\",IF(L8>K8,\"Stĺpec 10 je väčši ako stĺpec 9\",\" \")))))","v":" "}]
[null,21,null,null,null,null,null,null,null,null,null,null,null,{"$f":"IF(D9>C9,\"Stĺpec 2 je väčši ako stĺpec 1\",IF(F9>E9,\"Stĺpec 4 je väčši ako stĺpec 3\",IF(H9>G9,\"Stĺpec 6 je väčši ako stĺpec 5\",IF(J9>I9,\"Stĺpec 8 je väčši ako stĺpec 7\",IF(L9>K9,\"Stĺpec 10 je väčši ako stĺpec 9\",\" \")))))","v":" "}]
[null,22,null,null,null,null,null,null,null,null,null,null,null," "]
[null,23,null,null,null,null,null,null,null,null,null,null,null," "]
[null,24,null,null,null,null,null,null,null,null,null,null,null," "]
[null,25,null,null,null,null,null,null,null,null,null,null,null," "]
[null,26,null,null,null,null,null,null,null,null,null,null,null," "]
[null,27,null,null,null,null,null,null,null,null,null,null,null," "]
[null,28,null,null,null,null,null,null,null,null,null,null,null," "]
[null,29,null,null,null,null,null,null,null,null,null,null,null," "]
[null,"30 - 34",null,null,null,null,null,null,null,null,null,null,null," "]
[null,"35 - 39",null,null,null,null,null,null,null,null,null,null,null," "]
[null,"40 a viac",null,null,null,null,null,null,null,null,null,null,null," "]
["Spolu",null,{"$f":"SUM(C8:C20)","v":0},0,0,0,0,0,0,0,0,0]
[]
[{"$f":"IF(SUM(C21:L21)<>SUM(C25:L25),\"Súčet podľa veku je rôzny od súčtu podľa odborov v oranžovo vyznačených stĺpcoch\",\" \")","v":" "}]
["Kontrolný nápočet"]
["podľa odborov",null,{"$f":"SV12_01!G8","v":0},{"$f":"SV12_01!H8","v":0},{"$f":"SV12_01!I8","v":0},{"$f":"SV12_01!J8","v":0},{"$f":"SV12_01!K8","v":0},{"$f":"SV12_01!L8","v":0},{"$f":"SV12_01!M8","v":0},{"$f":"SV12_01!N8","v":0},{"$f":"SV12_01!O8","v":0},{"$f":"SV12_01!P8","v":0}]